bitfinex-derivatives/quotes_ETHF0:USTF0_20251009
["timestamp","ask_amount","ask_price","bid_price","bid_amount"]
[1760021106760,0.00255779,4321.1,4321.0,1.9887]
[1760021106958,0.00255779,4321.1,4321.0,2.2327]
[1760021107156,4.23473195,4321.1,4321.0,2.2327]
[1760021107956,0.00255779,4321.1,4321.0,2.2327]
[1760021108165,0.00255779,4321.1,4321.0,43.8396]
[1760021108358,3.2078,4322.0,4321.9,1.9887]
[1760021108565,7.43997416,4322.0,4321.9,2.2327]
[1760021108759,3.2078,4322.0,4321.9,2.2327]
[1760021108958,3.2078,4322.0,4321.9,43.0327]
[1760021109357,15.23954432,4322.0,4321.9,40.80290339]
[1760021109658,10.23954432,4322.0,4321.9,0.00290339]
[1760021109854,9.40124432,4322.0,4321.9,0.00290339]
[1760021110063,3.20947016,4322.0,4321.9,43.03560339]
[1760021110453,0.185,4322.3,4322.2,0.41626]
[1760021110660,0.185,4322.3,4322.2,2.64896]
[1760021111364,0.185,4322.3,4322.2,2.2327]
[1760021111562,0.18770197,4322.3,4322.2,1.9887]
[1760021111763,1.9596,4322.2,4321.9,40.80290339]
[1760021112059,4.23217416,4322.0,4321.9,40.80290339]
[1760021112262,6.19177416,4322.0,4321.9,0.00290339]
[1760021112460,2.027,4321.4,4321.0,0.244]
[1760021112763,4.23217416,4321.1,4321.0,2.0046]
[1760021112968,4.23217416,4321.1,4321.0,2.2486]
[1760021113263,4.23217416,4321.1,4321.0,2.0046]
[1760021113460,4.23217416,4321.1,4321.0,2.25036771]
[1760021113863,4.23217416,4321.1,4321.0,0.00176771]
[1760021114063,6.25917416,4321.1,4321.0,0.00176771]
[1760021114263,5.2348,4321.5,4321.1,2.0046]
[1760021114465,0.41636,4321.2,4321.1,2.0046]
[1760021114660,2.027,4321.1,4321.0,0.00176771]
[1760021114861,6.25917416,4321.1,4321.0,0.00176771]
[1760021115664,6.25917416,4321.1,4319.9,2.0046]
[1760021115665,0.41647,4320.1,4319.9,2.0046]
[1760021115872,1.041,4320.8,4319.9,2.0046]
[1760021115873,4.23217416,4320.0,4319.9,2.0046]
[1760021116369,3.2078,4320.8,4320.6,2.0046]
[1760021116571,3.2078,4321.3,4321.0,2.0046]
[1760021116868,4.23217416,4321.1,4321.0,2.00653179]
[1760021117264,3.2078,4321.3,4321.2,2.0046]
[1760021117765,0.244,4321.7,4321.6,2.0046]
[1760021117966,3.2078,4322.4,4322.2,2.42086]
[1760021118267,3.2078,4322.4,4322.2,43.0486]
[1760021118464,6.44687613,4322.3,4322.2,40.8]
[1760021118661,6.69087613,4322.3,4322.2,40.8]
[1760021119975,2.027,4322.2,4321.5,2.0046]
[1760021120173,2.027,4321.3,4321.0,2.00653179]
[1760021120468,4.23217416,4321.2,4321.1,40.8]
[1760021120670,3.2078,4321.6,4321.4,2.42094]
[1760021120965,3.2078,4321.6,4321.5,2.7789]
[1760021121466,0.244,4322.0,4321.6,2.0046]
[1760021121671,0.244,4322.0,4321.9,2.0046]
[1760021122166,2.44329,4321.9,4321.6,2.0046]
[1760021122362,2.027,4321.9,4321.8,40.8]
[1760021122563,0.244,4322.0,4321.9,2.0046]
[1760021122971,4.47617416,4322.0,4321.9,2.0046]
[1760021123175,2.44329,4321.9,4321.8,40.8]
[1760021123474,2.44334,4321.5,4321.1,2.2486]
[1760021123778,4.47617416,4321.5,4321.0,0.77623179]
[1760021123976,3.2078,4321.6,4321.5,1.19063]
[1760021124174,3.2078,4321.6,4321.5,3.43923]
[1760021124473,7.43997416,4321.6,4321.5,2.2486]
[1760021124770,7.43997416,4321.6,4321.0,0.77623179]
[1760021124976,0.7648,4320.5,4319.8,1.65109139]
[1760021125168,0.7648,4320.5,4319.1,1.65109139]
[1760021125169,3.2078,4319.9,4319.1,1.65109139]
[1760021125369,2.7918,4320.0,4318.7,2.0046]
[1760021125370,7.43997416,4319.2,4318.7,2.0046]
[1760021125570,3.2078,4318.9,4318.8,2.42119]
[1760021125775,4.23217416,4319.2,4318.9,0.41657]
[1760021125976,4.23217416,4319.2,4319.1,2.0046]
[1760021125977,0.00176275,4319.2,4319.1,2.0046]
[1760021126169,0.00176275,4319.2,4319.1,2.42116]
[1760021127076,0.00176275,4319.2,4319.1,2.0046]
[1760021127970,0.00176275,4319.2,4319.1,7.0046]
[1760021128175,0.00176275,4319.2,4319.1,47.8046]
[1760021128371,3.2078,4320.0,4319.9,2.0046]
[1760021128772,3.2078,4320.0,4319.9,2.2496]
[1760021128973,3.2078,4320.5,4320.0,1.19078]
[1760021129373,3.45493144,4320.5,4320.3,0.41644]
[1760021129576,3.45493144,4320.5,4320.4,2.2496]
[1760021129577,0.00213144,4320.5,4320.4,2.2496]
[1760021129776,0.00213144,4320.5,4320.4,7.2496]
[1760021129974,3.2078,4321.0,4320.9,2.42099]
[1760021130179,3.2078,4321.5,4321.4,2.0046]
[1760021130688,3.2078,4321.5,4321.4,7.0046]
[1760021130874,3.2078,4321.5,4321.4,2.2496]
[1760021131182,3.21034565,4321.5,4321.4,2.2496]
[1760021131774,3.21034565,4321.5,4321.0,0.7743]
[1760021131974,0.4164,4320.9,4320.7,2.0046]
[1760021132175,7.43997416,4320.8,4320.6,2.0046]
[1760021132378,7.43997416,4320.8,4320.0,0.7743]
[1760021132379,0.41644,4320.5,4320.0,0.7743]
[1760021132578,7.43997416,4320.1,4320.0,2.7789]
[1760021132982,3.2078,4320.1,4320.0,3.0249]
[1760021133873,3.2078,4320.1,4320.0,2.7789]
[1760021134077,3.2078,4320.1,4320.0,3.0249]
[1760021134374,2.027,4321.1,4320.0,3.0249]
[1760021134375,3.2078,4320.6,4320.5,2.7789]
[1760021134578,0.00254565,4321.5,4321.0,2.42098]
[1760021134579,3.2078,4321.1,4321.0,2.42098]
[1760021134782,4.23217416,4321.1,4321.0,2.2506]
[1760021134976,0.41887565,4321.5,4321.0,0.66237]
[1760021135176,4.23217416,4321.1,4321.0,2.66697]
[1760021135376,4.23217416,4321.2,4321.1,2.42096]
[1760021135576,0.41887565,4321.5,4321.1,0.41636]
[1760021135783,4.23217416,4321.2,4321.0,0.246]
[1760021135980,4.23217416,4321.2,4321.0,0.66238]
[1760021136284,0.41634,4321.4,4321.0,0.66238]
[1760021136480,4.23217416,4321.1,4321.0,0.66238]
[1760021136683,4.23217416,4321.1,4321.0,2.66698]
[1760021136879,0.00254565,4321.5,4321.1,2.0046]
[1760021137081,4.23217416,4321.4,4321.3,2.42094]
[1760021137377,0.00254565,4321.5,4321.3,0.41634]
[1760021137582,0.00254565,4321.5,4321.4,2.0046]
[1760021138082,4.23471981,4321.5,4321.4,2.0046]
[1760021138284,4.23471981,4321.5,4321.4,42.8046]
[1760021138481,4.23471981,4321.5,4321.4,40.8]
[1760021138783,11.92404981,4321.5,4321.4,40.8]
[1760021139480,4.89704981,4321.5,4321.4,40.8]
[1760021139680,4.89704981,4321.5,4321.4,42.8046]
[1760021140187,6.92404981,4321.5,4321.4,40.8]
[1760021140782,4.48071981,4321.5,4321.4,2.0046]
[1760021140983,4.23471981,4321.5,4321.4,2.0046]
[1760021141179,2.44334,4321.4,4321.2,0.246]
[1760021141381,1.04103,4320.8,4320.3,1.65109139]
[1760021141580,0.7648,4321.0,4319.9,42.8046]
[1760021141581,0.41648,4320.0,4319.9,42.8046]
[1760021142083,0.246,4320.1,4320.0,2.0046]
[1760021142278,2.273,4320.1,4319.9,40.8]
[1760021142481,4.23217416,4320.0,4319.9,42.8727]
[1760021142784,4.23217416,4320.0,4319.9,40.8]
[1760021142980,4.23217416,4320.0,4319.9,42.8727]
[1760021143180,4.23217416,4320.0,4319.9,40.8]
[1760021143787,6.19017416,4320.0,4319.9,40.8]
[1760021143983,4.23217416,4320.0,4319.9,40.8]
[1760021144287,4.23217416,4320.0,4319.9,42.8727]
[1760021144685,4.23217416,4320.0,4319.9,40.8]
[1760021145189,6.14317416,4320.0,4319.9,40.8]
[1760021145789,6.95637416,4320.0,4319.9,40.8]
[1760021146290,0.41653,4319.5,4319.3,0.41654]
[1760021146583,3.62431,4319.7,4319.5,1.9977]
[1760021146884,4.89467416,4319.8,4319.6,42.7977]
[1760021147084,3.62426,4320.2,4319.7,2.2437]
[1760021147290,0.41648,4320.0,4319.8,2.4142]
[1760021147481,4.23217416,4319.9,4319.8,2.4142]
[1760021147986,0.41649,4319.9,4319.8,1.9977]
[1760021148187,3.4528,4320.2,4319.9,1.9977]
[1760021148378,3.4528,4320.2,4320.1,1.9977]
[1760021148585,3.2078,4320.2,4320.1,2.2437]
[1760021148885,3.2078,4320.2,4320.1,1.9977]
[1760021149086,5.1188,4320.2,4320.1,40.8]
[1760021149387,0.41652,4319.6,4319.5,0.246]
[1760021149585,2.32752,4319.6,4319.5,0.246]
[1760021149780,4.64869416,4319.6,4319.5,40.8]
[1760021150382,9.76749416,4319.6,4319.5,40.8]
[1760021150585,7.85649416,4319.6,4319.5,40.8]
[1760021150787,3.62432,4319.6,4319.5,42.7977]
[1760021151187,0.246,4320.0,4319.5,43.7785]
[1760021151386,0.246,4320.0,4319.9,1.9977]
[1760021151889,3.87026,4320.3,4320.1,1.9977]
[1760021152086,3.2078,4320.3,4320.2,2.2437]
[1760021152290,2.88368986,4320.3,4320.2,2.2437]
[1760021152489,3.2078,4320.8,4320.7,0.41641]
[1760021152789,3.2078,4320.8,4320.7,43.46011]
[1760021153294,0.00254565,4321.5,4321.4,1.05464]
[1760021153490,0.00254565,4321.5,4321.4,1.30064]
[1760021153882,4.23471981,4321.5,4321.4,0.246]
[1760021154090,0.41635,4321.4,4320.9,0.41639]
[1760021154290,5.04791981,4321.5,4320.6,5.03729844]
[1760021154291,2.32736,4321.3,4321.0,0.246]
[1760021154487,1.911,4321.2,4320.9,0.41639]
[1760021154687,6.14317416,4321.2,4321.0,0.41638]
[1760021154887,0.00254565,4321.5,4320.7,0.6383]
[1760021155082,4.23217416,4321.2,4321.1,0.41637]
[1760021155287,4.23217416,4321.2,4321.1,0.66237]
[1760021155581,0.41888565,4321.5,4321.1,0.66237]
[1760021155582,2.32988565,4321.5,4321.1,0.66237]
[1760021155783,4.23217416,4321.2,4321.1,0.246]
[1760021155990,4.64854416,4321.2,4320.6,3.2078]
[1760021156193,4.23217416,4321.1,4320.9,0.41639]
[1760021156391,4.23217416,4321.1,4321.0,0.245]
[1760021156892,4.23217416,4321.1,4320.7,3.2078]
[1760021157196,4.64855416,4321.0,4320.8,0.245]
[1760021157695,4.64855416,4321.0,4320.8,0.8833]
[1760021158084,3.14058,4321.0,4320.9,40.8]
[1760021158486,2.15854565,4321.5,4321.1,0.41636]
[1760021158693,2.15854565,4321.5,4320.9,41.045]
[1760021158694,2.15854565,4321.5,4320.9,41.4383]
[1760021158991,1.911,4321.0,4320.9,40.8]
[1760021159187,6.95637416,4321.0,4320.9,40.8]
[1760021159384,1.911,4320.9,4320.6,3.2078]
[1760021159587,0.41647,4320.2,4320.0,3.2078]
[1760021159783,6.14317416,4320.1,4320.0,3.2078]
[1760021160089,6.14317416,4320.1,4320.0,44.0078]
[1760021160293,1.911,4319.9,4319.5,3.2078]
[1760021160592,0.8132,4320.0,4319.5,3.2078]
[1760021160593,1.911,4319.6,4319.5,3.2078]
[1760021160794,6.14317416,4319.6,4319.5,44.0078]
[1760021160990,1.22973,4319.5,4318.7,3.2078]
[1760021161190,0.8132,4318.5,4317.9,2.09093106]
[1760021161383,1.911,4318.3,4317.9,0.02315967]
[1760021161589,0.245,4318.4,4318.1,0.6383]
[1760021161793,0.245,4318.4,4318.0,41.045]
[1760021161992,4.47717416,4318.4,4318.2,0.41665]
[1760021162194,1.911,4319.9,4319.2,0.41655]
[1760021162401,0.245,4319.8,4319.5,0.41652]
[1760021162591,1.911,4319.5,4319.3,0.41654]
[1760021162792,1.91306213,4319.5,4319.3,0.41654]
[1760021163092,0.00206213,4319.5,4319.4,0.6383]
[1760021163291,0.00206213,4319.5,4319.3,0.41654]
[1760021163495,0.00206213,4319.5,4319.4,0.6383]
[1760021164295,0.00206213,4319.5,4319.4,3.8461]
[1760021165190,0.8132,4321.0,4320.3,0.41644]
[1760021165389,0.245,4320.9,4320.3,0.41644]
[1760021165594,0.66139,4320.9,4320.6,1.05472]
[1760021165794,4.23217416,4320.7,4320.6,1.05472]
[1760021165991,4.23217416,4320.7,4319.7,1.65656985]
[1760021165992,0.41649,4319.9,4319.7,1.65656985]
[1760021166298,4.23217416,4319.8,4319.5,3.2078]
[1760021166599,4.021,4321.0,4319.8,0.6383]
[1760021166795,4.23217416,4320.4,4320.2,0.41645]
[1760021166991,4.23217416,4320.7,4320.5,0.41643]
[1760021167301,0.41639,4320.9,4320.6,0.6353]
[1760021167302,4.64857416,4320.9,4320.6,0.6353]
[1760021167503,6.55957416,4320.8,4320.6,0.245]
[1760021167800,0.41642,4320.6,4320.4,0.245]
[1760021168102,0.41642,4320.6,4320.5,40.8]
[1760021168501,0.00277656,4320.8,4320.5,41.21642]
[1760021168696,4.65135072,4320.8,4320.6,0.6353]
[1760021168998,4.23495072,4320.8,4320.7,0.6353]
[1760021170197,2.32741,4320.7,4320.5,40.8]
[1760021170495,4.23217416,4320.7,4320.6,0.6353]
[1760021170696,0.41632,4321.7,4320.8,1.04101]
[1760021170893,1.911,4321.2,4321.1,3.2078]
[1760021171099,1.911,4321.2,4320.5,40.8]
[1760021171100,0.41642,4320.6,4320.5,40.8]
[1760021171294,7.85639416,4320.6,4320.5,40.8]
[1760021171494,4.23217416,4320.6,4320.5,41.4325]
[1760021171699,3.2078,4321.6,4320.6,1.04105]
[1760021172001,1.911,4321.1,4320.6,0.6325]
[1760021172205,0.41642,4320.6,4320.5,40.8]
[1760021172401,4.64859416,4320.6,4320.5,40.8]
[1760021172595,0.41642,4320.6,4320.5,41.4012]
[1760021172799,0.41641,4320.8,4320.5,41.81763]
[1760021173000,4.23217416,4320.6,4320.5,41.4012]
[1760021173199,4.23217416,4320.6,4320.5,40.8]
[1760021173401,6.19437416,4320.6,4320.5,40.8]
[1760021173607,9.40217416,4320.6,4320.5,40.8]
[1760021174200,4.23217416,4320.6,4320.5,40.8]
[1760021174399,4.23217416,4320.6,4320.5,41.4012]
[1760021174594,0.1851,4321.0,4320.9,0.6012]
[1760021174795,0.1851,4321.0,4320.9,0.8452]
[1760021174998,3.2078,4322.2,4321.5,0.1897]
[1760021175198,1.9622,4323.2,4322.6,0.41623]
[1760021175406,4.23217416,4322.8,4322.7,40.8]
[1760021175705,0.244,4323.3,4322.9,0.41619]
[1760021175907,1.9622,4323.1,4323.0,0.244]
[1760021176100,6.19719897,4323.1,4323.0,0.0018883]
[1760021176809,4.23499897,4323.1,4323.0,0.0018883]
[1760021177207,0.00282481,4323.1,4323.0,0.0018883]
[1760021177506,0.00282481,4323.1,4323.0,0.2458883]
[1760021177707,0.00282481,4323.1,4323.0,3.4536883]
[1760021178699,0.185,4323.9,4323.7,0.41612]
[1760021178896,4.41717416,4323.9,4323.8,3.4518]
[1760021179106,6.79547416,4323.9,4323.8,44.2518]
[1760021179403,2.5633,4323.9,4323.8,44.0078]
[1760021179603,2.56501069,4323.9,4323.8,40.8]
[1760021179804,2.37837,4323.2,4323.1,3.2078]
[1760021180010,6.61054416,4323.2,4323.1,3.2078]
[1760021180201,1.9622,4323.2,4323.1,3.2078]
[1760021180405,0.244,4323.4,4323.1,3.2078]
[1760021180609,0.18671069,4323.9,4323.2,0.244]
[1760021180803,0.18671069,4323.9,4323.6,3.2078]
[1760021181008,1.9622,4323.7,4323.6,3.2078]
[1760021181213,6.19437416,4323.7,4323.6,3.2078]
[1760021181510,2.37833,4323.7,4323.5,0.244]
[1760021181810,1.9622,4323.4,4323.3,40.8]
[1760021182110,1.1847,4324.0,4323.6,0.41613]
[1760021182409,1.9622,4324.9,4323.7,1.04031]
[1760021182611,1.9622,4324.2,4324.1,3.2078]
[1760021182803,0.244,4324.4,4323.6,3.2078]
[1760021183112,4.64826416,4324.1,4323.8,3.2078]
[1760021183308,0.00167235,4324.1,4323.9,0.41611]
[1760021183510,0.00167235,4324.1,4324.0,0.244]
[1760021184006,2.3783,4324.0,4323.8,3.2078]
[1760021184205,2.3783,4324.0,4323.9,40.8]
[1760021184402,0.00167235,4324.1,4324.0,0.4161]
[1760021184605,0.00167235,4324.1,4324.0,0.6601]
[1760021185712,0.1849,4324.8,4324.7,0.41603]
[1760021185910,0.1849,4324.8,4324.7,0.244]
[1760021186309,0.1849,4324.8,4324.7,41.044]
[1760021186610,0.18699013,4324.8,4324.7,41.044]
[1760021188215,6.19646429,4324.8,4324.7,40.8]
[1760021189712,4.23426429,4324.8,4324.7,40.8]
[1760021189915,6.19646429,4324.8,4324.7,40.8]
[1760021191219,4.23426429,4324.8,4323.0,0.0018883]
[1760021191411,4.23426429,4324.8,4322.0,1.65656985]
[1760021191412,0.41625,4322.6,4322.3,1.8891]
[1760021191606,3.2078,4322.4,4322.1,1.8891]
[1760021191918,4.23217416,4322.0,4321.7,0.247]
[1760021192513,4.23217416,4322.0,4321.8,1.8891]
[1760021192717,0.185,4322.5,4322.1,1.8891]
[1760021192907,3.2078,4322.7,4322.6,2.30534]
[1760021193109,2.70631899,4322.7,4322.6,2.1361]
[1760021193420,3.2078,4323.4,4323.0,0.8287]
[1760021193621,4.23217416,4323.2,4323.1,1.8891]
[1760021194012,3.2078,4323.4,4323.0,1.4919]
[1760021194214,4.23217416,4323.2,4323.1,1.8891]
[1760021194419,4.23217416,4323.2,4323.1,42.6891]
[1760021194718,0.246,4323.7,4323.2,1.8891]
[1760021194919,4.23217416,4323.4,4323.3,1.8891]
[1760021195119,3.2078,4323.9,4323.6,0.41615]
[1760021195421,3.4538,4324.5,4323.8,1.8891]
[1760021195618,4.64828416,4324.0,4323.9,0.246]
[1760021195819,4.23217416,4324.0,4323.9,42.9351]
[1760021196019,3.4538,4324.5,4324.0,0.8287]
[1760021196219,4.23217416,4324.1,4324.0,2.7178]
[1760021198317,0.00209013,4324.8,4324.0,2.7178]
[1760021198318,0.00209013,4324.8,4324.0,4.0365]
[1760021198518,0.00209013,4324.8,4324.7,1.8891]
[1760021198723,4.23426429,4324.8,4324.7,1.8891]
[1760021199219,0.00209013,4324.8,4324.7,2.30514]
[1760021199416,0.246,4325.3,4324.7,7.30514]
[1760021199616,0.58995,4325.7,4325.2,2.30509]
[1760021199913,0.58995,4325.7,4325.6,1.8891]
[1760021200309,0.59253629,4325.7,4325.6,0.00268343]
[1760021200521,7.55473629,4325.7,4325.6,0.00268343]
[1760021201615,0.59253629,4325.7,4325.6,1.89178343]
[1760021201822,0.00258629,4325.7,4325.6,1.89178343]
[1760021202016,0.24858629,4325.7,4325.6,1.89178343]
[1760021202419,0.24858629,4325.7,4325.6,42.69178343]
[1760021203417,0.24858629,4325.7,4325.5,1.18106]
[1760021203418,1.04003,4325.1,4324.1,1.9245]
[1760021203617,1.04003,4325.1,4323.0,0.7651]
[1760021203618,4.23217416,4324.1,4322.9,3.2078]
[1760021203928,0.41616,4323.5,4323.1,1.9245]
[1760021204114,3.2078,4323.2,4323.1,1.9245]
[1760021204319,3.2078,4323.9,4323.5,0.7651]
[1760021204717,4.23217416,4323.7,4323.6,1.9235]
[1760021205220,3.4628,4323.9,4323.6,1.9235]
[1760021205221,0.41613,4323.8,4323.6,1.9235]
[1760021205422,4.23217416,4323.7,4323.6,1.9235]
[1760021205815,0.41618,4323.4,4323.1,0.00191653]
[1760021206122,7.43997416,4323.2,4323.1,1.92541653]
[1760021206313,7.69697416,4323.2,4323.1,1.92541653]
[1760021206623,3.4648,4323.2,4323.1,1.92541653]
[1760021207318,5.79719,4323.2,4323.1,0.00191653]
[1760021207518,10.79719,4323.2,4323.1,0.00191653]
[1760021207720,0.41627,4322.4,4322.1,1.9235]
[1760021207922,4.23217416,4322.1,4322.0,2.6886]
[1760021208117,4.23217416,4322.2,4322.1,1.9235]
[1760021208323,0.261,4322.8,4322.5,0.8272]
[1760021208625,1.9162,4322.7,4321.4,3.2078]
[1760021208823,1.9162,4322.7,4320.8,1.9235]
[1760021208824,4.23217416,4322.6,4322.5,2.75070863]
[1760021209120,3.2078,4322.6,4322.5,2.75070863]
[1760021209316,3.2078,4322.6,4322.5,7.75070863]
[1760021209517,0.00293897,4322.8,4322.6,1.9235]
[1760021209919,0.41624,4322.6,4322.5,8.63e-06]
[1760021210119,12.85621416,4322.6,4322.5,8.63e-06]
[1760021210622,8.12121416,4322.6,4322.5,8.63e-06]
[1760021211121,13.12121416,4322.6,4322.5,8.63e-06]
[1760021211316,0.41631,4322.0,4321.3,1.9235]
[1760021211518,3.2078,4321.8,4321.5,0.8272]
[1760021211722,6.14836553,4321.3,4320.4,5.1313]
[1760021211923,4.23216553,4320.8,4320.6,1.9235]
[1760021212119,0.267,4320.7,4320.6,1.9235]
[1760021212421,4.49916553,4320.7,4320.6,1.9235]
[1760021212614,3.4748,4320.7,4320.0,2.7507]
[1760021212813,3.4748,4320.7,4320.6,1.92555472]
[1760021213014,3.2078,4320.7,4320.6,1.92555472]
[1760021213212,0.00293897,4322.8,4320.6,1.92555472]
[1760021213213,3.2078,4321.2,4321.0,0.8272]
[1760021213416,0.41642,4320.8,4320.6,0.00205472]
[1760021213618,7.70796553,4320.7,4320.6,0.00205472]
[1760021214022,5.392,4320.7,4320.6,0.00205472]
[1760021214242,3.4758,4320.7,4320.6,0.00205472]
[1760021214725,3.4758,4320.7,4319.0,0.8272]
[1760021214726,10.392,4320.7,4319.0,0.8272]
[1760021215024,3.2078,4319.5,4319.1,1.9235]
[1760021215324,3.89235,4319.5,4319.0,0.8272]
[1760021215629,3.89235,4319.5,4318.2,3.2078]
[1760021215630,0.41664,4318.6,4318.2,3.2078]
[1760021215817,1.9162,4318.0,4317.9,0.02315967]
[1760021216022,4.50116553,4318.0,4317.1,1.9235]
[1760021216219,7.43996553,4317.7,4317.1,1.92598483]
[1760021216520,3.2078,4318.2,4318.0,0.8272]
[1760021216721,0.271,4318.5,4318.0,0.8272]
[1760021217025,0.271,4319.0,4318.6,1.9235]
[1760021217219,0.271,4319.0,4318.5,0.8272]
[1760021217220,0.0028626,4319.5,4319.1,1.9235]
[1760021217520,0.0028626,4319.5,4319.4,0.8272]
[1760021217725,0.0028626,4319.5,4319.4,2.7507]
[1760021218214,0.0028626,4319.5,4319.4,43.5507]
[1760021218615,3.2078,4320.4,4319.5,2.34004]
[1760021218920,0.272,4320.3,4320.0,0.8272]
[1760021219326,3.2078,4320.4,4320.1,1.9235]
[1760021219518,3.2078,4320.9,4320.6,0.8272]
[1760021219719,3.2078,4321.4,4321.0,0.41639]
[1760021219919,0.272,4322.0,4321.8,0.8272]
[1760021220221,0.272,4322.0,4321.9,1.9235]
[1760021220416,3.2078,4323.0,4322.0,1.9235]
[1760021220616,10.40102,4324.8,4321.9,3.2078]
[1760021220617,3.2078,4323.5,4322.5,1.9235]
[1760021220822,3.2078,4324.1,4323.6,0.8272]
[1760021221121,4.23216553,4324.0,4323.6,0.8272]
[1760021221325,4.50416553,4324.0,4323.7,1.9235]
[1760021221622,0.68811,4324.0,4323.8,40.8]
[1760021221818,1.9162,4323.8,4323.7,5.89e-06]
[1760021222023,4.23216553,4323.8,4322.6,1.9235]
[1760021222217,4.23216553,4322.5,4322.0,1.9235]
[1760021222522,0.272,4322.4,4322.1,1.9235]
[1760021222819,3.2078,4322.9,4322.2,40.8]
[1760021223018,0.41626,4322.4,4322.2,40.8]
[1760021223223,7.71196553,4322.3,4322.2,40.8]
[1760021223520,3.2078,4322.8,4322.2,42.7235]
[1760021223724,0.41616,4323.5,4323.2,2.7507]
[1760021224022,4.23216553,4323.3,4323.2,2.7507]
[1760021224222,4.23216553,4323.3,4323.2,1.9235]
[1760021224419,0.41622,4322.9,4322.6,1.9235]
[1760021224621,0.41623,4322.7,4322.6,1.9235]
[1760021224922,0.41627,4322.4,4322.3,1.9235]
[1760021225228,0.272,4322.6,4322.3,1.9235]
[1760021225416,0.272,4322.6,4322.2,40.8]
[1760021225619,0.41626,4322.4,4322.3,1.9235]
[1760021225821,0.272,4322.6,4322.3,1.9235]
[1760021226020,4.23216553,4322.4,4322.3,1.9235]
[1760021226224,0.00234149,4324.1,4322.5,0.8272]
[1760021226225,0.271,4322.7,4322.5,0.8272]
[1760021226423,0.271,4322.7,4322.6,5.1313]
[1760021226818,0.022,4322.9,4322.6,5.1313]
[1760021227020,3.21014149,4324.1,4323.4,0.41617]
[1760021227226,3.21014149,4324.1,4324.0,1.9235]
[1760021227423,0.271,4324.7,4324.0,3.2078]
[1760021227621,4.23216553,4324.8,4324.1,40.8]
[1760021227833,4.23216553,4324.8,4324.7,1.9235]
[1760021228128,0.271,4324.8,4324.7,1.9235]
[1760021228323,0.27349685,4324.8,4324.7,1.9235]
[1760021229030,6.42186238,4324.8,4324.7,40.8]
[1760021229228,4.50566238,4324.8,4324.0,5.1313]
[1760021229532,0.4161,4324.1,4324.0,3.2078]
[1760021229724,0.41615,4323.6,4323.5,5.1313]
[1760021229928,4.91831553,4323.6,4323.5,5.1313]
[1760021230124,0.00249685,4324.8,4323.7,0.41614]
[1760021230327,0.41606,4324.5,4324.1,1.9235]
[1760021230523,0.41606,4324.5,4324.0,1.9235]
[1760021230524,0.41611,4324.1,4324.0,1.9235]
[1760021230726,0.27,4324.1,4323.9,0.8272]
[1760021231136,0.41608,4324.4,4324.0,1.9235]
[1760021231329,4.23216553,4324.2,4324.0,1.9235]
[1760021231530,4.64825553,4324.2,4324.0,1.9235]
[1760021231835,0.41612,4323.9,4323.5,3.2078]
[1760021232030,4.23216553,4323.6,4323.5,3.2078]
[1760021232228,4.50216553,4323.6,4323.5,5.1313]
[1760021232424,4.50216553,4323.6,4323.0,5.1313]
[1760021232728,4.64833553,4323.4,4323.1,2.0125]
[1760021232918,3.2078,4324.4,4323.2,0.7788]
[1760021233123,0.269,4324.3,4324.0,2.0125]
[1760021233325,0.269,4324.2,4324.0,2.0125]
[1760021233533,0.269,4324.1,4324.0,5.2203]
[1760021233827,0.41602,4324.9,4324.3,0.41607]
[1760021234028,0.416,4325.2,4324.7,2.42854]
[1760021234229,3.2078,4326.4,4324.8,2.0125]
[1760021234531,0.269,4326.3,4326.1,2.0125]
[1760021234727,4.23216553,4326.1,4326.0,3.9866]
[1760021234932,0.41591,4326.1,4326.0,3.9866]
[1760021235325,0.68729913,4326.1,4326.0,6.0008759]
[1760021235521,4.91946466,4326.1,4326.0,0.0017759]
[1760021236127,4.91946466,4326.1,4325.5,3.2078]
[1760021236429,4.23216553,4325.6,4325.5,3.2078]
[1760021236629,0.41595,4325.6,4325.5,3.2078]
[1760021236924,0.68495,4325.6,4325.5,3.2078]
[1760021237126,0.68495,4325.6,4325.5,3.21052934]
[1760021237329,0.269,4325.6,4325.5,3.21052934]
[1760021237626,0.00238913,4326.1,4325.5,8.62648934]
[1760021237824,4.23455466,4326.1,4325.5,3.62648934]
[1760021238222,0.00238913,4326.1,4326.0,6.41502]
[1760021238524,0.60065,4326.7,4326.3,0.41588]
[1760021238723,4.23216553,4326.6,4326.3,0.41588]
[1760021238929,4.23216553,4326.6,4326.5,2.0125]
[1760021239419,4.23378966,4326.6,4326.5,2.0125]
[1760021239620,4.23378966,4326.6,4326.5,5.2203]
[1760021240020,3.2078,4327.9,4326.5,51.2883]
[1760021240224,3.2078,4328.4,4327.5,2.0125]
[1760021240527,0.41576,4327.6,4327.5,2.0125]
[1760021240732,4.64792553,4327.6,4327.5,2.0125]
[1760021240924,4.23216553,4327.6,4327.5,2.0125]
[1760021241129,4.23397941,4327.6,4327.5,2.0125]
[1760021241328,0.41565,4328.8,4327.6,2.0313]
[1760021241526,4.23216553,4328.2,4328.1,2.8483]
[1760021241826,4.23216553,4328.2,4327.4,0.7788]
[1760021241827,0.41577,4327.5,4327.4,6.0179]
[1760021242025,4.64793553,4327.5,4327.4,5.2391]
[1760021242231,0.4158,4327.2,4326.8,3.2078]
[1760021242430,0.27115696,4327.2,4326.9,2.0313]
[1760021242629,4.64799553,4326.9,4326.8,3.2078]
[1760021243129,0.41583,4326.9,4326.8,5.2391]
[1760021243931,0.00215696,4327.2,4326.9,2.0313]
[1760021244233,4.23216553,4327.0,4326.9,2.0313]
[1760021244422,4.23216553,4327.1,4326.9,2.0313]